[Event "Eurasia Open Cup 2019"]
[Site "Ekaterinburg"]
[Date "2019.08.03"]
[Round "4.16"]
[White "Kozionov, Kirill"]
[Black "Pastukhov, Leonid"]
[Result "1-0"]
[ECO "A52"]
[WhiteElo "2454"]
[BlackElo "2215"]
[Annotator "ChessBase"]
[PlyCount "119"]
[EventDate "2019.07.31"]
[EventType "swiss"]
[EventCountry "RUS"]
[SourceTitle "playchess.com"]
[Source "ChessBase"]
[SourceQuality "1"]
[TimeControl "5400+30"]

1. d4 {[%emt 0:00:00]} Nf6 {[%emt 0:00:00]} 2. c4 {[%emt 0:00:00]} e5 {[%emt 0:00:00]} 3. dxe5 {[%emt 0:00:24]} Ng4 {[%emt 0:00:06]} 4. Nf3 {[%emt 0:03:41]} Bc5 {[%emt 0:01:29]} 5. e3 {[%emt 0:00:04]} Nc6 {[%emt 0:00:11]} 6. Be2 {[%emt 0:00:19]} O-O {[%emt 0:00:44]} 7. Nc3 {[%emt 0:00:16]} Ngxe5 {[%emt 0:00:53]} 8. Nxe5 {[%emt 0:00:24]} Nxe5 {[%emt 0:00:00]} 9. O-O {[%emt 0:00:18]} a5 {[%emt 0:03:31]} 10. Na4 {[%emt 0:04:29]} Be7 {[%emt 0:03:40]} 11. b3 {[%emt 0:05:03]} Bf6 {[%emt 0:03:40]} 12. Bb2 {[%emt 0:00:40]} d6 {[%emt 0:00:24]} 13. Qd2 {[%emt 0:01:52]} Bd7 {[%emt 0:05:04]} 14. Nc3 {[%emt 0:00:31]} Ng6 {[%emt 0:00:36]} 15. Rad1 {[%emt 0:04:27]} b6 {[%emt 0:02:47]} 16. Ba3 {[%emt 0:05:42]} Bxc3 {[%emt 0:07:05]} 17. Qxc3 {[%emt 0:00:32]} Bc6 {[%emt 0:02:17]} 18. Bb2 {[%emt 0:01:25]} f6 {[%emt 0:00:00]} 19. Rfe1 {[%emt 0:10:11]} Qe7 {[%emt 0:00:35]} 20. e4 {[%emt 0:04:37]} Rae8 {[%emt 0:05:35]} 21. Bf1 {[%emt 0:01:10]} Qe5 {[%emt 0:00:31]} 22. f3 {[%emt 0:01:15]} Nh4 {[%emt 0:02:48]} 23. Qd2 {[%emt 0:01:56]} Qg5 {[%emt 0:09:55]} 24. Qxg5 {[%emt 0:21:41]} fxg5 {[%emt 0:02:09]} 25. e5 {[%emt 0:04:04]} dxe5 {[%emt 0:00:38]} 26. Rxe5 {[%emt 0:00:02]} h6 {[%emt 0:00:19]} 27. Rde1 {[%emt 0:01:13]} Kf7 {[%emt 0:20:47]} 28. Rxe8 {[%emt 0:00:27]} Rxe8 {[%emt 0:05:19]} 29. Rxe8 {[%emt 0:05:19]} Bxe8 {[%emt 0:03:47]} 30. Be5 {[%emt 0:00:00]} c6 {[%emt 0:07:40]} 31. Bc7 {[%emt 0:00:00]} b5 {[%emt 0:00:19]} 32. Bxa5 {[%emt 0:00:00]} Bd7 {[%emt 0:00:08]} 33. Bb6 {[%emt 0:00:12]} Ke6 {[%emt 0:01:09]} 34. Kf2 {[%emt 0:02:02]} Kd6 {[%emt 0:00:46]} 35. Bd4 {[%emt 0:02:06]} Nf5 {[%emt 0:00:55]} 36. Bc3 {[%emt 0:00:48]} g6 {[%emt 0:01:09]} 37. g4 {[%emt 0:01:58]} Ne7 {[%emt 0:00:54]} 38. Bg7 {[%emt 0:01:12]} h5 {[%emt 0:02:35]} 39. h3 {[%emt 0:00:31]} bxc4 {[%emt 0:00:39]} 40. bxc4 {[%emt 0:01:17]} Ke6 {[%emt 0:01:52]} 41. Bd3 {[%emt 0:00:00]} Kf7 {[%emt 0:00:24]} 42. Bd4 {[%emt 0:00:57]} Be6 {[%emt 0:02:04]} 43. Ke3 {[%emt 0:01:37]} Ng8 {[%emt 0:01:03]} 44. Be5 {[%emt 0:00:13]} Ke7 {[%emt 0:00:09]} 45. Kd4 {[%emt 0:00:26]} Kd7 {[%emt 0:01:14]} 46. Bxg6 {[%emt 0:01:23]} hxg4 {[%emt 0:01:48]} 47. hxg4 {[%emt 0:00:39]} Nh6 {[%emt 0:01:09]} 48. Bf6 {[%emt 0:00:00]} Kd6 {[%emt 0:00:47]} 49. Bxg5 {[%emt 0:00:56]} c5+ {[%emt 0:00:00]} 50. Kc3 {[%emt 0:00:53]} Nf7 {[%emt 0:00:54]} 51. Bf4+ {[%emt 0:01:44]} Kd7 {[%emt 0:00:11]} 52. Be4 {[%emt 0:00:05]} Nd8 {[%emt 0:00:13]} 53. Bd5 {[%emt 0:01:30]} Nc6 {[%emt 0:00:46]} 54. Bxe6+ {[%emt 0:04:02]} Kxe6 {[%emt 0:00:07]} 55. Be3 {[%emt 0:02:19]} Ne5 {[%emt 0:00:02]} 56. Bxc5 {[%emt 0:00:24]} Nxf3 {[%emt 0:00:07]} 57. Be3 {[%emt 0:00:13]} Ne5 {[%emt 0:00:53]} 58. g5 {[%emt 0:00:43]} Kf5 {[%emt 0:00:07]} 59. Bc1 {[%emt 0:00:00]} Nf7 {[%emt 0:01:30]} 60. a4 {[%emt 0:00:19]} 1-0

[Event "Eurasia Open Cup 2019"]
[Site "Ekaterinburg"]
[Date "2019.08.03"]
[Round "4.17"]
[White "Garifullina, Leya"]
[Black "Khanin, Semen"]
[Result "1/2-1/2"]
[ECO "B31"]
[WhiteElo "2268"]
[BlackElo "2517"]
[Annotator "ChessBase"]
[PlyCount "77"]
[EventDate "2019.07.31"]
[EventType "swiss"]
[EventCountry "RUS"]
[SourceTitle "playchess.com"]
[Source "ChessBase"]
[SourceQuality "1"]
[TimeControl "5400+30"]

1. e4 {[%emt 0:00:00]} c5 {[%emt 0:00:00]} 2. Nf3 {[%emt 0:00:00]} Nc6 {[%emt 0:00:00]} 3. Bb5 {[%emt 0:00:00]} g6 {[%emt 0:00:00]} 4. Bxc6 {[%emt 0:00:00]} dxc6 {[%emt 0:00:00]} 5. d3 {[%emt 0:00:00]} Bg7 {[%emt 0:00:00]} 6. h3 {[%emt 0:00:00]} Nf6 {[%emt 0:00:00]} 7. Nc3 {[%emt 0:00:00]} Nd7 {[%emt 0:00:00]} 8. Be3 {[%emt 0:00:00]} e5 {[%emt 0:00:00]} 9. O-O {[%emt 0:00:07]} b6 {[%emt 0:00:00]} 10. Nh2 {[%emt 0:00:05]} Nf8 {[%emt 0:00:00]} 11. f4 {[%emt 0:00:05]} exf4 {[%emt 0:00:00]} 12. Bxf4 {[%emt 0:00:55]} Ne6 {[%emt 0:00:57]} 13. Bg3 {[%emt 0:01:24]} O-O {[%emt 0:12:54]} 14. Nf3 {[%emt 0:01:10]} Nd4 {[%emt 0:01:54]} 15. Qd2 {[%emt 0:07:05]} f5 {[%emt 0:04:43]} 16. exf5 {[%emt 0:01:12]} Bxf5 {[%emt 0:00:19]} 17. Nxd4 {[%emt 0:05:40]} Qxd4+ {[%emt 0:00:15]} 18. Kh1 {[%emt 0:01:16]} Rae8 {[%emt 0:04:51]} 19. Rad1 {[%emt 0:05:14]} Qb4 {[%emt 0:11:39]} 20. Qc1 {[%emt 0:07:31]} Bxc3 {[%emt 0:03:26]} 21. bxc3 {[%emt 0:00:15]} Qxc3 {[%emt 0:00:08]} 22. Be1 {[%emt 0:05:33]} Qd4 {[%emt 0:02:56]} 23. Bf2 {[%emt 0:01:58]} Qd5 {[%emt 0:02:13]} 24. c4 {[%emt 0:00:27]} Qd7 {[%emt 0:00:08]} 25. Kg1 {[%emt 0:05:19]} Bxd3 {[%emt 0:08:13]} 26. Qc3 {[%emt 0:06:13]} Rd8 {[%emt 0:00:16]} 27. Rfe1 {[%emt 0:01:12]} Qf5 {[%emt 0:12:15]} 28. Be3 {[%emt 0:07:29]} Rd7 {[%emt 0:16:09]} 29. Bh6 {[%emt 0:08:17]} Qf6 {[%emt 0:07:17]} 30. Qc1 {[%emt 0:08:50]} Qf2+ {[%emt 0:06:13]} 31. Kh2 {[%emt 0:00:59]} Rfd8 {[%emt 0:00:01]} 32. Qg5 {[%emt 0:05:56]} Qf5 {[%emt 0:00:44]} 33. Qg3 {[%emt 0:00:26]} Bxc4 {[%emt 0:02:39]} 34. Re5 {[%emt 0:00:35]} Qf7 {[%emt 0:00:42]} 35. Rde1 {[%emt 0:00:33]} Rd3 {[%emt 0:04:09]} 36. Qh4 {[%emt 0:01:35]} R3d4 {[%emt 0:00:14]} 37. Qg3 {[%emt 0:01:17]} Rd3 {[%emt 0:01:22]} 38. Qh4 {[%emt 0:00:38]} R3d4 {[%emt 0:00:46]} 39. Qg3 {[%emt 0:00:00]} 1/2-1/2

[Event "Eurasia Open Cup 2019"]
[Site "Ekaterinburg"]
[Date "2019.08.03"]
[Round "4.18"]
[White "Drygalov, Andrey"]
[Black "Zasukhin, Vadim"]
[Result "1-0"]
[ECO "B01"]
[WhiteElo "2494"]
[BlackElo "2249"]
[Annotator "ChessBase"]
[PlyCount "91"]
[EventDate "2019.07.31"]
[EventType "swiss"]
[EventCountry "RUS"]
[SourceTitle "playchess.com"]
[Source "ChessBase"]
[SourceQuality "1"]
[TimeControl "5400+30"]

1. e4 {[%emt 0:00:00]} d5 {[%emt 0:00:00]} 2. exd5 {[%emt 0:00:00]} Qxd5 {[%emt 0:00:00]} 3. Nc3 {[%emt 0:00:00]} Qd6 {[%emt 0:00:00]} 4. d4 {[%emt 0:00:00]} Nf6 {[%emt 0:00:00]} 5. Nf3 {[%emt 0:00:00]} g6 {[%emt 0:00:00]} 6. Nb5 {[%emt 0:00:10]} Qb6 {[%emt 0:00:02]} 7. a4 {[%emt 0:00:15]} c6 {[%emt 0:00:00]} 8. a5 {[%emt 0:00:36]} Qd8 {[%emt 0:00:00]} 9. Nc3 {[%emt 0:00:05]} Bg7 {[%emt 0:00:12]} 10. Bc4 {[%emt 0:00:07]} O-O {[%emt 0:00:51]} 11. h3 {[%emt 0:00:39]} Bf5 {[%emt 0:01:16]} 12. Nh4 {[%emt 0:05:22]} Bxc2 {[%emt 0:09:32]} 13. Qxc2 {[%emt 0:00:54]} Qxd4 {[%emt 0:00:02]} 14. Ra4 {[%emt 0:00:40]} e6 {[%emt 0:05:07]} 15. Nf3 {[%emt 0:02:26]} Qd8 {[%emt 0:00:14]} 16. O-O {[%emt 0:01:46]} Nbd7 {[%emt 0:00:03]} 17. Ra1 {[%emt 0:01:44]} Nd5 {[%emt 0:00:12]} 18. Bg5 {[%emt 0:16:21]} Qc7 {[%emt 0:02:48]} 19. Qd2 {[%emt 0:06:43]} Ne5 {[%emt 0:04:06]} 20. Nxe5 {[%emt 0:02:44]} Qxe5 {[%emt 0:00:40]} 21. Rfe1 {[%emt 0:00:43]} Qc7 {[%emt 0:00:22]} 22. Bxd5 {[%emt 0:01:53]} cxd5 {[%emt 0:00:36]} 23. Bh6 {[%emt 0:00:38]} Bxh6 {[%emt 0:00:24]} 24. Qxh6 {[%emt 0:00:06]} Rfc8 {[%emt 0:00:22]} 25. Ra4 {[%emt 0:00:01]} Qd7 {[%emt 0:03:16]} 26. Rd4 {[%emt 0:07:29]} f6 {[%emt 0:01:15]} 27. Qe3 {[%emt 0:01:31]} Rc6 {[%emt 0:00:26]} 28. Rd2 {[%emt 0:02:33]} Qc7 {[%emt 0:02:13]} 29. Ra1 {[%emt 0:02:53]} a6 {[%emt 0:01:42]} 30. h4 {[%emt 0:01:59]} Rd8 {[%emt 0:01:02]} 31. h5 {[%emt 0:02:40]} Kg7 {[%emt 0:00:59]} 32. Ra4 {[%emt 0:03:32]} g5 {[%emt 0:02:44]} 33. f4 {[%emt 0:03:14]} h6 {[%emt 0:00:35]} 34. Rad4 {[%emt 0:04:12]} Qf7 {[%emt 0:03:31]} 35. Qf3 {[%emt 0:02:18]} Rc5 {[%emt 0:14:07]} 36. b4 {[%emt 0:05:52]} Rc6 {[%emt 0:05:39]} 37. f5 {[%emt 0:01:20]} exf5 {[%emt 0:02:53]} 38. Nxd5 {[%emt 0:05:11]} Qe6 {[%emt 0:04:01]} 39. Rd1 {[%emt 0:00:46]} Qe5 {[%emt 0:00:31]} 40. Qf2 {[%emt 0:00:42]} Re8 {[%emt 0:00:29]} 41. Nb6 {[%emt 0:00:16]} Re7 {[%emt 0:00:46]} 42. Nc4 {[%emt 0:00:30]} Qe2 {[%emt 0:00:46]} 43. Qxe2 {[%emt 0:00:27]} Rxe2 {[%emt 0:01:10]} 44. Rd7+ {[%emt 0:00:33]} Kf8 {[%emt 0:00:17]} 45. Rd8+ {[%emt 0:00:20]} Kf7 {[%emt 0:00:39]} 46. Nd6+ {[%emt 0:00:30]} 1-0

[Event "Eurasia Open Cup 2019"]
[Site "Ekaterinburg"]
[Date "2019.08.03"]
[Round "4.19"]
[White "Odegov, Artem"]
[Black "Balashov, Yuri S"]
[Result "0-1"]
[ECO "E32"]
[WhiteElo "2261"]
[BlackElo "2474"]
[Annotator "ChessBase"]
[PlyCount "90"]
[EventDate "2019.07.31"]
[EventType "swiss"]
[EventCountry "RUS"]
[SourceTitle "playchess.com"]
[Source "ChessBase"]
[SourceQuality "1"]
[TimeControl "5400+30"]

1. d4 {[%emt 0:00:00]} Nf6 {[%emt 0:00:00]} 2. c4 {[%emt 0:00:00]} e6 {[%emt 0:00:00]} 3. Nc3 {[%emt 0:00:00]} Bb4 {[%emt 0:00:00]} 4. Qc2 {[%emt 0:00:11]} d6 {[%emt 0:00:32]} 5. e3 {[%emt 0:04:34]} c5 {[%emt 0:06:17]} 6. Bd3 {[%emt 0:12:12]} Nc6 {[%emt 0:01:06]} 7. Nge2 {[%emt 0:01:43]} e5 {[%emt 0:00:33]} 8. dxc5 {[%emt 0:03:52]} dxc5 {[%emt 0:04:13]} 9. Bd2 {[%emt 0:07:18]} Be6 {[%emt 0:05:40]} 10. Ng3 {[%emt 0:07:27]} O-O {[%emt 0:01:45]} 11. O-O {[%emt 0:03:00]} h6 {[%emt 0:03:37]} 12. Rfd1 {[%emt 0:07:04]} Qc7 {[%emt 0:00:36]} 13. a3 {[%emt 0:00:40]} Bxc3 {[%emt 0:03:34]} 14. Bxc3 {[%emt 0:02:15]} a5 {[%emt 0:00:00]} 15. b3 {[%emt 0:00:36]} b6 {[%emt 0:01:14]} 16. Be2 {[%emt 0:05:54]} Rfe8 {[%emt 0:00:41]} 17. Nf5 {[%emt 0:06:46]} Bxf5 {[%emt 0:03:56]} 18. Qxf5 {[%emt 0:03:07]} Re6 {[%emt 0:04:38]} 19. Ra2 {[%emt 0:01:33]} Rae8 {[%emt 0:00:40]} 20. Rad2 {[%emt 0:07:02]} e4 {[%emt 0:00:16]} 21. Bxf6 {[%emt 0:02:44]} Rxf6 {[%emt 0:12:49]} 22. Qd7 {[%emt 0:07:49]} Qxd7 {[%emt 0:00:40]} 23. Rxd7 {[%emt 0:00:48]} g6 {[%emt 0:00:30]} 24. R1d6 {[%emt 0:00:00]} Rfe6 {[%emt 0:01:45]} 25. f4 {[%emt 0:06:35]} exf3 {[%emt 0:03:01]} 26. Bxf3 {[%emt 0:02:18]} Ne5 {[%emt 0:01:02]} 27. Rxe6 {[%emt 0:00:31]} Rxe6 {[%emt 0:01:09]} 28. Rd8+ {[%emt 0:00:27]} Kg7 {[%emt 0:04:40]} 29. Bd5 {[%emt 0:00:03]} Rf6 {[%emt 0:00:09]} 30. h3 {[%emt 0:00:10]} h5 {[%emt 0:00:39]} 31. Re8 {[%emt 0:00:36]} Nd3 {[%emt 0:00:57]} 32. e4 {[%emt 0:01:01]} Nc1 {[%emt 0:00:31]} 33. e5 {[%emt 0:00:59]} Rf5 {[%emt 0:02:42]} 34. Re7 {[%emt 0:01:52]} Kf8 {[%emt 0:03:17]} 35. Rb7 {[%emt 0:01:04]} h4 {[%emt 0:00:26]} 36. g4 {[%emt 0:02:08]} hxg3 {[%emt 0:01:40]} 37. Kg2 {[%emt 0:00:01]} Ne2 {[%emt 0:01:03]} 38. Bf3 {[%emt 0:03:04]} Rxe5 {[%emt 0:00:17]} 39. Rxb6 {[%emt 0:00:41]} Nd4 {[%emt 0:01:09]} 40. Bd5 {[%emt 0:00:24]} Nf5 {[%emt 0:01:45]} 41. b4 {[%emt 0:00:18]} axb4 {[%emt 0:00:41]} 42. axb4 {[%emt 0:00:50]} Re2+ {[%emt 0:07:07]} 43. Kf1 {[%emt 0:00:35]} Rc2 {[%emt 0:01:47]} 44. Ke1 {[%emt 0:00:08]} Ne3 {[%emt 0:00:10]} 45. Rb8+ {[%emt 0:00:45]} Kg7 {[%emt 0:01:25]} 0-1

[Event "Eurasia Open Cup 2019"]
[Site "Ekaterinburg"]
[Date "2019.08.03"]
[Round "4.20"]
[White "Schepetkova, Margarita"]
[Black "Kabanov, Nikolai"]
[Result "0-1"]
[ECO "A53"]
[WhiteElo "2241"]
[BlackElo "2450"]
[Annotator "ChessBase"]
[PlyCount "111"]
[EventDate "2019.07.31"]
[EventType "swiss"]
[EventCountry "RUS"]
[SourceTitle "playchess.com"]
[Source "ChessBase"]
[SourceQuality "1"]
[TimeControl "5400+30"]

1. d4 {[%emt 0:00:00]} Nf6 {[%emt 0:00:00]} 2. c4 {[%emt 0:00:00]} d6 {[%emt 0:00:00]} 3. Nc3 {[%emt 0:00:06]} e5 {[%emt 0:00:00]} 4. dxe5 {[%emt 0:02:36]} dxe5 {[%emt 0:00:00]} 5. Qxd8+ {[%emt 0:00:03]} Kxd8 {[%emt 0:00:05]} 6. Nf3 {[%emt 0:00:05]} Nbd7 {[%emt 0:00:57]} 7. Rg1 {[%emt 0:00:16]} h6 {[%emt 0:06:41]} 8. g4 {[%emt 0:00:18]} e4 {[%emt 0:02:03]} 9. g5 {[%emt 0:14:59]} exf3 {[%emt 0:08:57]} 10. gxf6 {[%emt 0:00:07]} Nxf6 {[%emt 0:02:08]} 11. exf3 {[%emt 0:03:40]} Be6 {[%emt 0:16:41]} 12. Bf4 {[%emt 0:00:39]} c6 {[%emt 0:04:41]} 13. O-O-O+ {[%emt 0:00:10]} Ke8 {[%emt 0:00:06]} 14. Re1 {[%emt 0:00:36]} Bc5 {[%emt 0:03:39]} 15. Be3 {[%emt 0:12:48]} Bxe3+ {[%emt 0:00:58]} 16. Rxe3 {[%emt 0:00:38]} Kf8 {[%emt 0:02:20]} 17. Ne4 {[%emt 0:03:48]} Rd8 {[%emt 0:09:41]} 18. Kc2 {[%emt 0:07:27]} Nxe4 {[%emt 0:03:07]} 19. fxe4 {[%emt 0:00:14]} g5 {[%emt 0:00:00]} 20. Bd3 {[%emt 0:04:24]} Ke7 {[%emt 0:01:53]} 21. Kc3 {[%emt 0:00:10]} c5 {[%emt 0:02:17]} 22. a3 {[%emt 0:04:33]} a5 {[%emt 0:00:29]} 23. Rb1 {[%emt 0:03:13]} Rd7 {[%emt 0:01:05]} 24. Rh1 {[%emt 0:04:07]} g4 {[%emt 0:09:37]} 25. Rg1 {[%emt 0:04:15]} Rdd8 {[%emt 0:01:40]} 26. h3 {[%emt 0:04:57]} h5 {[%emt 0:01:50]} 27. hxg4 {[%emt 0:05:49]} hxg4 {[%emt 0:00:38]} 28. Be2 {[%emt 0:01:46]} Rh4 {[%emt 0:03:09]} 29. Bd3 {[%emt 0:05:54]} Rh2 {[%emt 0:00:15]} 30. f4 {[%emt 0:00:09]} gxf3 {[%emt 0:00:09]} 31. Rxf3 {[%emt 0:00:02]} b6 {[%emt 0:02:23]} 32. Rb1 {[%emt 0:02:03]} Rg8 {[%emt 0:01:05]} 33. b4 {[%emt 0:02:43]} axb4+ {[%emt 0:01:31]} 34. axb4 {[%emt 0:00:00]} Ra8 {[%emt 0:00:42]} 35. bxc5 {[%emt 0:00:42]} bxc5 {[%emt 0:00:00]} 36. Bc2 {[%emt 0:07:39]} Ra2 {[%emt 0:01:37]} 37. Bb3 {[%emt 0:00:18]} Rae2 {[%emt 0:01:00]} 38. Ra1 {[%emt 0:00:01]} Rxe4 {[%emt 0:02:26]} 39. Ra7+ {[%emt 0:00:39]} Kf8 {[%emt 0:00:48]} 40. Rc7 {[%emt 0:00:55]} Rh5 {[%emt 0:01:11]} 41. Kb2 {[%emt 0:01:43]} Rd4 {[%emt 0:00:59]} 42. Rc6 {[%emt 0:02:52]} Ke7 {[%emt 0:00:56]} 43. Rc7+ {[%emt 0:01:02]} Rd7 {[%emt 0:00:08]} 44. Rc6 {[%emt 0:00:12]} Re5 {[%emt 0:01:29]} 45. Kc3 {[%emt 0:00:54]} Ra7 {[%emt 0:01:20]} 46. Rd3 {[%emt 0:00:33]} f5 {[%emt 0:01:40]} 47. Rh3 {[%emt 0:00:19]} f4 {[%emt 0:00:56]} 48. Rh7+ {[%emt 0:00:10]} Bf7 {[%emt 0:00:00]} 49. Bc2 {[%emt 0:01:32]} Re3+ {[%emt 0:04:13]} 50. Kb2 {[%emt 0:00:14]} Re2 {[%emt 0:00:26]} 51. Kc3 {[%emt 0:01:12]} f3 {[%emt 0:03:43]} 52. Rh3 {[%emt 0:01:28]} Ra3+ {[%emt 0:00:43]} 53. Kb2 {[%emt 0:00:00]} f2 {[%emt 0:00:48]} 54. Rh1 {[%emt 0:01:22]} Rf3 {[%emt 0:00:24]} 55. Rf1 {[%emt 0:00:33]} Bxc4 {[%emt 0:00:20]} 56. Rh1 {[%emt 0:00:12]} 0-1

[Event "Eurasia Open Cup 2019"]
[Site "Ekaterinburg"]
[Date "2019.08.03"]
[Round "4.21"]
[White "Khusenkhojaev, Muhammad"]
[Black "Rudometov, Maxim"]
[Result "1-0"]
[ECO "E69"]
[WhiteElo "2441"]
[BlackElo "2233"]
[Annotator "NA"]
[PlyCount "80"]
[EventDate "2019.07.31"]
[EventType "swiss"]
[EventCountry "RUS"]
[SourceTitle "playchess.com"]
[Source "ChessBase"]
[SourceQuality "1"]
[TimeControl "5400+30"]

1. d4 {[%emt 0:00:00]} Nf6 {[%emt 0:01:22]} 2. c4 {[%emt 0:00:00]} g6 {[%emt 0:01:23]} 3. g3 {[%emt 0:00:37]} Bg7 {[%emt 0:00:24]} 4. Nf3 {[%emt 0:00:00]} O-O {[%emt 0:01:49]} 5. Bg2 {[%emt 0:00:00]} d6 {[%emt 0:00:08]} 6. O-O {[%emt 0:00:14]} Nbd7 {[%emt 0:00:16]} 7. Nc3 {[%emt 0:00:11]} e5 {[%emt 0:02:38]} 8. e4 {[%emt 0:00:10]} c6 {[%emt 0:01:29]} 9. h3 {[%emt 0:00:20]} Qc7 {[%emt 0:01:11]} 10. Be3 {[%emt 0:00:32]} Re8 {[%emt 0:00:21]} 11. d5 {[%emt 0:00:44]} c5 {[%emt 0:01:13]} 12. a3 {[%emt 0:01:47]} Nf8 {[%emt 0:05:45]} 13. Nd2 {[%emt 0:00:01]} h6 {[%emt 0:05:47]} 14. b4 {[%emt 0:01:30]} b6 {[%emt 0:00:10]} 15. Rb1 {[%emt 0:04:07]} g5 {[%emt 0:18:18]} 16. Nb5 {[%emt 0:04:04]} Qd8 {[%emt 0:01:29]} 17. Nb3 {[%emt 0:01:44]} a6 {[%emt 0:07:48]} 18. Nxd6 {[%emt 0:00:08]} Qxd6 {[%emt 0:00:05]} 19. bxc5 {[%emt 0:00:08]} bxc5 {[%emt 0:00:03]} 20. Nxc5 {[%emt 0:00:45]} Qc7 {[%emt 0:08:18]} 21. Qc2 {[%emt 0:02:54]} a5 {[%emt 0:06:09]} 22. Rfc1 {[%emt 0:03:59]} Ng6 {[%emt 0:02:24]} 23. Na4 {[%emt 0:00:53]} Bd7 {[%emt 0:02:51]} 24. Nb6 {[%emt 0:00:38]} Rab8 {[%emt 0:00:02]} 25. c5 {[%emt 0:00:15]} Bf8 {[%emt 0:01:21]} 26. Bf1 {[%emt 0:05:16]} Kg7 {[%emt 0:13:00]} 27. f3 {[%emt 0:02:34]} Nh5 {[%emt 0:06:42]} 28. Bf2 {[%emt 0:05:00]} Red8 {[%emt 0:01:46]} 29. Qc3 {[%emt 0:07:19]} a4 {[%emt 0:04:25]} 30. c6 {[%emt 0:01:27]} Be8 {[%emt 0:00:32]} 31. Nxa4 {[%emt 0:00:38]} Rxb1 {[%emt 0:00:30]} 32. Rxb1 {[%emt 0:00:07]} Ra8 {[%emt 0:02:25]} 33. Rb7 {[%emt 0:01:41]} Qa5 {[%emt 0:00:47]} 34. Qxa5 {[%emt 0:01:26]} Rxa5 {[%emt 0:00:05]} 35. Nb6 {[%emt 0:03:35]} Bxa3 {[%emt 0:01:30]} 36. Rb8 {[%emt 0:00:38]} Nf6 {[%emt 0:00:30]} 37. c7 {[%emt 0:05:19]} Ne7 {[%emt 0:00:13]} 38. Nc4 {[%emt 0:00:46]} Ra4 {[%emt 0:00:28]} 39. Nxa3 {[%emt 0:00:00]} Rxa3 {[%emt 0:00:42]} 40. Bc5 {[%emt 0:00:10]} Neg8 {[%emt 0:00:35]} 1-0

[Event "Eurasia Open Cup 2019"]
[Site "Ekaterinburg"]
[Date "2019.08.03"]
[Round "4.22"]
[White "Navrodskiy, Boris"]
[Black "Davtyan, Artur"]
[Result "0-1"]
[ECO "D12"]
[WhiteElo "2223"]
[BlackElo "2440"]
[Annotator "NA"]
[PlyCount "70"]
[EventDate "2019.07.31"]
[EventType "swiss"]
[EventCountry "RUS"]
[SourceTitle "playchess.com"]
[Source "ChessBase"]
[SourceQuality "1"]
[TimeControl "5400+30"]

1. d4 {[%emt 0:00:00]} d5 {[%emt 0:00:00]} 2. c4 {[%emt 0:00:00]} c6 {[%emt 0:00:00]} 3. Nf3 {[%emt 0:00:00]} Nf6 {[%emt 0:00:00]} 4. e3 {[%emt 0:01:04]} Bf5 {[%emt 0:00:00]} 5. Nc3 {[%emt 0:00:39]} e6 {[%emt 0:00:00]} 6. Nh4 {[%emt 0:00:26]} Be4 {[%emt 0:00:00]} 7. f3 {[%emt 0:08:31]} Bg6 {[%emt 0:01:15]} 8. Nxg6 {[%emt 0:00:00]} hxg6 {[%emt 0:00:04]} 9. Bd3 {[%emt 0:00:00]} Bd6 {[%emt 0:02:34]} 10. f4 {[%emt 0:00:16]} c5 {[%emt 0:37:12]} 11. cxd5 {[%emt 0:35:58]} exd5 {[%emt 0:04:47]} 12. O-O {[%emt 0:07:29]} Nc6 {[%emt 0:07:06]} 13. Qf3 {[%emt 0:07:56]} Be7 {[%emt 0:16:34]} 14. Ne2 {[%emt 0:04:53]} Qb6 {[%emt 0:01:34]} 15. dxc5 {[%emt 0:05:37]} Bxc5 {[%emt 0:00:01]} 16. Nc3 {[%emt 0:00:30]} Qd8 {[%emt 0:03:45]} 17. Rd1 {[%emt 0:01:57]} Qe7 {[%emt 0:07:02]} 18. a3 {[%emt 0:03:51]} a5 {[%emt 0:05:34]} 19. Bb5 {[%emt 0:00:34]} Rd8 {[%emt 0:03:11]} 20. Nxd5 {[%emt 0:01:36]} Nxd5 {[%emt 0:00:17]} 21. Rxd5 {[%emt 0:00:04]} O-O {[%emt 0:01:30]} 22. Bxc6 {[%emt 0:00:32]} bxc6 {[%emt 0:04:38]} 23. Rxd8 {[%emt 0:03:54]} Rxd8 {[%emt 0:00:03]} 24. b4 {[%emt 0:01:25]} axb4 {[%emt 0:00:32]} 25. axb4 {[%emt 0:03:46]} Bxb4 {[%emt 0:00:00]} 26. e4 {[%emt 0:00:03]} c5 {[%emt 0:00:00]} 27. Bb2 {[%emt 0:05:55]} Qd7 {[%emt 0:05:17]} 28. f5 {[%emt 0:01:24]} g5 {[%emt 0:00:09]} 29. Rf1 {[%emt 0:01:42]} c4 {[%emt 0:00:20]} 30. f6 {[%emt 0:01:16]} g6 {[%emt 0:00:32]} 31. Bc1 {[%emt 0:01:17]} c3 {[%emt 0:00:08]} 32. Bxg5 {[%emt 0:01:55]} c2 {[%emt 0:00:00]} 33. Qg3 {[%emt 0:00:26]} Qd1 {[%emt 0:00:01]} 34. Qh3 {[%emt 0:01:21]} Bc5+ {[%emt 0:00:15]} 35. Be3 {[%emt 0:00:02]} c1=Q {[%emt 0:00:02]} 0-1

[Event "Eurasia Open Cup 2019"]
[Site "Ekaterinburg"]
[Date "2019.08.03"]
[Round "4.23"]
[White "Shubin, Kirill"]
[Black "Iljushina, Olga"]
[Result "1-0"]
[ECO "B13"]
[WhiteElo "2426"]
[BlackElo "2208"]
[Annotator "NA"]
[PlyCount "57"]
[EventDate "2019.07.31"]
[EventType "swiss"]
[EventCountry "RUS"]
[SourceTitle "playchess.com"]
[Source "ChessBase"]
[SourceQuality "1"]
[TimeControl "5400+30"]

1. e4 {[%emt 0:00:00]} c6 {[%emt 0:00:00]} 2. d4 {[%emt 0:00:00]} d5 {[%emt 0:00:00]} 3. exd5 {[%emt 0:00:00]} cxd5 {[%emt 0:00:00]} 4. Bd3 {[%emt 0:00:00]} Nc6 {[%emt 0:00:00]} 5. c3 {[%emt 0:00:00]} Qc7 {[%emt 0:00:00]} 6. Ne2 {[%emt 0:00:00]} Bg4 {[%emt 0:00:00]} 7. O-O {[%emt 0:00:02]} Nf6 {[%emt 0:00:00]} 8. Qe1 {[%emt 0:00:02]} Bxe2 {[%emt 0:00:22]} 9. Qxe2 {[%emt 0:00:08]} e6 {[%emt 0:00:41]} 10. f4 {[%emt 0:02:29]} Bd6 {[%emt 0:01:04]} 11. g3 {[%emt 0:00:58]} O-O-O {[%emt 0:02:21]} 12. Nd2 {[%emt 0:00:00]} h5 {[%emt 0:02:21]} 13. Nf3 {[%emt 0:00:01]} Ne7 {[%emt 0:02:44]} 14. Ne5 {[%emt 0:03:19]} Nf5 {[%emt 0:01:35]} 15. Bd2 {[%emt 0:01:37]} g6 {[%emt 0:05:09]} 16. a4 {[%emt 0:01:53]} Nh6 {[%emt 0:00:32]} 17. a5 {[%emt 0:00:19]} Kb8 {[%emt 0:03:36]} 18. b4 {[%emt 0:04:29]} Nd7 {[%emt 0:11:19]} 19. b5 {[%emt 0:02:15]} Bxe5 {[%emt 0:15:20]} 20. fxe5 {[%emt 0:02:35]} Nf5 {[%emt 0:03:32]} 21. b6 {[%emt 0:00:15]} axb6 {[%emt 0:01:55]} 22. a6 {[%emt 0:06:27]} Rh7 {[%emt 0:02:55]} 23. Rfb1 {[%emt 0:03:17]} Rdh8 {[%emt 0:11:05]} 24. axb7 {[%emt 0:05:21]} Ne7 {[%emt 0:06:50]} 25. Bb5 {[%emt 0:02:19]} h4 {[%emt 0:04:31]} 26. Bxd7 {[%emt 0:06:45]} Qxd7 {[%emt 0:08:16]} 27. Ra8+ {[%emt 0:02:06]} Kc7 {[%emt 0:00:30]} 28. Qa6 {[%emt 0:00:32]} Qc6 {[%emt 0:00:18]} 29. b8=Q+ {[%emt 0:00:00]} 1-0